[Event "Denmark Team Championship 2022"]
[Site "Denmark"]
[Date "2022.10.29"]
[Round "1.2"]
[White "Domingo Nunez, Ruben"]
[Black "Bjerre, Jonas Buhl"]
[Result "0-1"]
[ECO "E46"]
[WhiteElo "2383"]
[BlackElo "2612"]
[Annotator "ChessBase"]
[PlyCount "62"]
[EventDate "2022.10.29"]
[EventType "team-tourn"]
[EventCountry "DEN"]
[SourceTitle "playchess.com"]
[Source "ChessBase"]
[SourceQuality "1"]
[TimeControl "40/5400+30:1800+30"]

1. d4 {[%emt 0:00:22]} Nf6 {[%emt 0:00:08]} 2. c4 {[%emt 0:00:14]} e6 {[%emt 0:00:12]} 3. Nc3 {[%emt 0:00:09]} Bb4 {[%emt 0:00:31]} 4. e3 {[%emt 0:01:11]} O-O {[%emt 0:00:28]} 5. Bd2 {[%emt 0:00:04]} c5 {[%emt 0:02:26]} 6. a3 {[%emt 0:07:48]} Bxc3 {[%emt 0:00:26]} 7. Bxc3 {[%emt 0:00:06]} Ne4 {[%emt 0:00:13]} 8. Ne2 {[%emt 0:05:16]} b6 {[%emt 0:01:03]} 9. d5 {[%emt 0:05:02]} Ba6 {[%emt 0:03:03]} 10. f3 {[%emt 0:10:12]} Nxc3 {[%emt 0:02:22]} 11. Nxc3 {[%emt 0:00:05]} Bxc4 {[%emt 0:02:44]} 12. dxe6 {[%emt 0:05:14]} Bxe6 {[%emt 0:06:55]} 13. Qd6 {[%emt 0:00:25]} Nc6 {[%emt 0:05:07]} 14. Bb5 {[%emt 0:04:41]} Qg5 {[%emt 0:07:38]} 15. Kf2 {[%emt 0:10:26]} Ne5 {[%emt 0:06:34]} 16. Rad1 {[%emt 0:18:41]} c4 {[%emt 0:04:09]} 17. h4 {[%emt 0:09:30]} Qf5 {[%emt 0:04:21]} 18. Nd5 {[%emt 0:00:10]} Nd3+ {[%emt 0:05:42]} 19. Rxd3 {[%emt 0:02:01]} Qxd3 {[%emt 0:00:07]} 20. Rd1 {[%emt 0:03:35]} Qc2+ {[%emt 0:00:32]} 21. Kg3 {[%emt 0:00:05]} Qg6+ {[%emt 0:07:41]} 22. Kf2 {[%emt 0:03:08]} Bxd5 {[%emt 0:02:29]} 23. Qxd5 {[%emt 0:04:44]} Rac8 {[%emt 0:01:33]} 24. h5 {[%emt 0:00:22]} Qf6 {[%emt 0:06:30]} 25. Rd4 {[%emt 0:02:15]} c3 {[%emt 0:00:46]} 26. bxc3 {[%emt 0:00:04]} Rxc3 {[%emt 0:00:40]} 27. Rf4 {[%emt 0:01:18]} Rc2+ {[%emt 0:02:27]} 28. Kg1 {[%emt 0:01:12]} Rc1+ {[%emt 0:01:05]} 29. Kh2 {[%emt 0:00:35]} Rc5 {[%emt 0:01:10]} 30. Qxd7 {[%emt 0:00:34]} Rxh5+ {[%emt 0:00:16]} 31. Kg3 {[%emt 0:00:15]} Qg5+ {[%emt 0:00:30]} 0-1

[Event "Denmark Team Championship 2022"]
[Site "Denmark"]
[Date "2022.10.29"]
[Round "1.2"]
[White "Veng, Johnni"]
[Black "Castellanos Rodriguez, Renier"]
[Result "1/2-1/2"]
[ECO "A05"]
[WhiteElo "2214"]
[BlackElo "2474"]
[Annotator "ChessBase"]
[PlyCount "98"]
[EventDate "2022.10.29"]
[EventType "team-tourn"]
[EventCountry "DEN"]
[SourceTitle "playchess.com"]
[Source "ChessBase"]
[SourceQuality "1"]
[TimeControl "40/5400+30:1800+30"]

1. Nf3 {[%emt 0:00:05]} Nf6 {[%emt 0:01:39]} 2. c4 {[%emt 0:00:45]} g6 {[%emt 0:03:22]} 3. g3 {[%emt 0:02:11]} Bg7 {[%emt 0:00:26]} 4. Bg2 {[%emt 0:00:07]} O-O {[%emt 0:01:00]} 5. O-O {[%emt 0:00:24]} d6 {[%emt 0:02:01]} 6. d4 {[%emt 0:03:14]} Nbd7 {[%emt 0:02:03]} 7. Qc2 {[%emt 0:02:47]} e5 {[%emt 0:02:07]} 8. Rd1 {[%emt 0:00:11]} exd4 {[%emt 0:04:27]} 9. Nxd4 {[%emt 0:00:51]} Re8 {[%emt 0:00:07]} 10. Nc3 {[%emt 0:07:17]} a6 {[%emt 0:05:47]} 11. h3 {[%emt 0:11:46]} Rb8 {[%emt 0:03:23]} 12. b3 {[%emt 0:14:41]} h6 {[%emt 0:15:15]} 13. Bb2 {[%emt 0:07:34]} c6 {[%emt 0:15:34]} 14. e4 {[%emt 0:20:50]} Qe7 {[%emt 0:08:53]} 15. Re1 {[%emt 0:07:09]} a5 {[%emt 0:03:33]} 16. Rad1 {[%emt 0:00:50]} Nc5 {[%emt 0:00:46]} 17. a3 {[%emt 0:07:09]} Qf8 {[%emt 0:08:03]} 18. b4 {[%emt 0:03:01]} axb4 {[%emt 0:00:08]} 19. axb4 {[%emt 0:00:05]} Ne6 {[%emt 0:00:33]} 20. Nf3 {[%emt 0:01:22]} Ng5 {[%emt 0:03:27]} 21. Nxg5 {[%emt 0:01:26]} hxg5 {[%emt 0:00:05]} 22. Qd2 {[%emt 0:04:03]} g4 {[%emt 0:00:50]} 23. h4 {[%emt 0:01:21]} Nd7 {[%emt 0:01:09]} 24. Ne2 {[%emt 0:02:12]} Ne5 {[%emt 0:01:00]} 25. Bxe5 {[%emt 0:00:30]} dxe5 {[%emt 0:02:16]} 26. Qc3 {[%emt 0:00:49]} Be6 {[%emt 0:00:52]} 27. Nc1 {[%emt 0:00:23]} Red8 {[%emt 0:02:48]} 28. Nb3 {[%emt 0:00:34]} b6 {[%emt 0:00:15]} 29. Bf1 {[%emt 0:00:08]} Qe7 {[%emt 0:00:42]} 30. Be2 {[%emt 0:00:04]} Bf8 {[%emt 0:03:46]} 31. Rxd8 {[%emt 0:00:48]} Rxd8 {[%emt 0:00:13]} 32. c5 {[%emt 0:00:32]} Bxb3 {[%emt 0:04:42]} 33. Qxb3 {[%emt 0:00:06]} bxc5 {[%emt 0:00:06]} 34. bxc5 {[%emt 0:00:48]} Qxc5 {[%emt 0:00:26]} 35. Bxg4 {[%emt 0:00:59]} Rd2 {[%emt 0:00:19]} 36. Qf3 {[%emt 0:00:26]} Qd4 {[%emt 0:00:18]} 37. h5 {[%emt 0:00:43]} Bc5 {[%emt 0:02:39]} 38. Rf1 {[%emt 0:00:10]} Rd3 {[%emt 0:00:56]} 39. Qg2 {[%emt 0:01:02]} Kg7 {[%emt 0:00:52]} 40. hxg6 {[%emt 0:00:18]} fxg6 {[%emt 0:00:06]} 41. Be2 {[%emt 0:05:57]} Ra3 {[%emt 0:02:53]} 42. Rd1 {[%emt 0:11:51]} Ra1 {[%emt 0:01:45]} 43. Qf3 {[%emt 0:01:23]} Bb6 {[%emt 0:05:36]} 44. Rxa1 {[%emt 0:01:11]} Qxa1+ {[%emt 0:00:07]} 45. Kg2 {[%emt 0:00:03]} Qd4 {[%emt 0:00:23]} 46. Ba6 {[%emt 0:02:04]} Qd6 {[%emt 0:03:22]} 47. Bc4 {[%emt 0:01:15]} Qf6 {[%emt 0:00:10]} 48. Qxf6+ {[%emt 0:00:32]} Kxf6 {[%emt 0:00:04]} 49. f4 {[%emt 0:00:10]} Bc7 {[%emt 0:01:01]} 1/2-1/2

[Event "Denmark Team Championship 2022"]
[Site "Denmark"]
[Date "2022.10.29"]
[Round "1.3"]
[White "Andersen, Mads"]
[Black "Christensen, Stefan"]
[Result "1-0"]
[ECO "B11"]
[WhiteElo "2604"]
[BlackElo "2293"]
[Annotator "ChessBase"]
[PlyCount "77"]
[EventDate "2022.10.29"]
[EventType "team-tourn"]
[EventCountry "DEN"]
[SourceTitle "playchess.com"]
[Source "ChessBase"]
[SourceQuality "1"]
[TimeControl "40/5400+30:1800+30"]

1. e4 {[%emt 0:02:15]} c6 {[%emt 0:00:32]} 2. Nf3 {[%emt 0:00:24]} d5 {[%emt 0:00:22]} 3. Nc3 {[%emt 0:00:11]} Bg4 {[%emt 0:00:34]} 4. h3 {[%emt 0:00:14]} Bxf3 {[%emt 0:00:29]} 5. Qxf3 {[%emt 0:00:10]} e6 {[%emt 0:00:30]} 6. Be2 {[%emt 0:00:30]} Nf6 {[%emt 0:00:57]} 7. O-O {[%emt 0:00:41]} Nbd7 {[%emt 0:01:05]} 8. d4 {[%emt 0:00:37]} dxe4 {[%emt 0:00:24]} 9. Nxe4 {[%emt 0:00:07]} Nxe4 {[%emt 0:00:17]} 10. Qxe4 {[%emt 0:00:02]} Nf6 {[%emt 0:00:20]} 11. Qe3 {[%emt 0:00:46]} Bd6 {[%emt 0:00:41]} 12. a4 {[%emt 0:01:05]} O-O {[%emt 0:01:22]} 13. a5 {[%emt 0:08:54]} Re8 {[%emt 0:02:47]} 14. Qf3 {[%emt 0:08:55]} Qc7 {[%emt 0:11:54]} 15. Rd1 {[%emt 0:17:09]} e5 {[%emt 0:02:24]} 16. dxe5 {[%emt 0:00:18]} Bxe5 {[%emt 0:00:25]} 17. c3 {[%emt 0:01:37]} Rad8 {[%emt 0:05:50]} 18. Rxd8 {[%emt 0:11:43]} Rxd8 {[%emt 0:00:26]} 19. g3 {[%emt 0:03:58]} Nd7 {[%emt 0:09:09]} 20. Be3 b6 {[%emt 0:02:35]} 21. axb6 {[%emt 0:03:05]} axb6 {[%emt 0:03:51]} 22. Kg2 Bd6 23. h4 {[%emt 0:05:20]} Re8 {[%emt 0:09:24]} 24. h5 {[%emt 0:02:42]} h6 {[%emt 0:03:19]} 25. Bd1 {[%emt 0:07:46]} Ne5 {[%emt 0:06:10]} 26. Qe4 {[%emt 0:01:37]} Rf8 {[%emt 0:02:42]} 27. Bb3 {[%emt 0:03:12]} Kh8 {[%emt 0:03:22]} 28. Qf5 {[%emt 0:02:24]} Qc8 {[%emt 0:16:00]} 29. Qxc8 {[%emt 0:00:39]} Rxc8 {[%emt 0:00:15]} 30. f4 {[%emt 0:02:10]} Ng4 {[%emt 0:02:35]} 31. Bg1 {[%emt 0:00:17]} Rf8 {[%emt 0:09:35]} 32. Ra6 {[%emt 0:04:35]} Bc5 {[%emt 0:01:13]} 33. Bxc5 {[%emt 0:00:19]} bxc5 {[%emt 0:00:08]} 34. Rxc6 {[%emt 0:00:09]} Kg8 {[%emt 0:03:48]} 35. Rc7 {[%emt 0:01:21]} Rb8 {[%emt 0:00:42]} 36. Bxf7+ {[%emt 0:00:12]} Kf8 {[%emt 0:00:19]} 37. b3 {[%emt 0:01:02]} Ne3+ {[%emt 0:00:55]} 38. Kf3 {[%emt 0:00:18]} Nd1 39. Bc4 1-0

[Event "Denmark Team Championship 2022"]
[Site "Denmark"]
[Date "2022.10.29"]
[Round "1.3"]
[White "Rozentalis, Eduardas"]
[Black "Brynell, Stellan"]
[Result "1-0"]
[ECO "C07"]
[WhiteElo "2500"]
[BlackElo "2383"]
[Annotator "ChessBase"]
[PlyCount "137"]
[EventDate "2022.10.29"]
[EventType "team-tourn"]
[EventCountry "DEN"]
[SourceTitle "playchess.com"]
[Source "ChessBase"]
[SourceQuality "1"]
[TimeControl "40/5400+30:1800+30"]

1. e4 {[%emt 0:00:05]} e6 {[%emt 0:00:09]} 2. d4 {[%emt 0:00:11]} d5 {[%emt 0:00:05]} 3. Nd2 {[%emt 0:00:12]} c5 {[%emt 0:00:13]} 4. Ngf3 {[%emt 0:00:42]} cxd4 {[%emt 0:00:18]} 5. exd5 {[%emt 0:00:44]} Qxd5 {[%emt 0:00:07]} 6. Bc4 {[%emt 0:00:10]} Qd7 {[%emt 0:00:14]} 7. Nb3 {[%emt 0:01:15]} Qc7 {[%emt 0:02:21]} 8. Qxd4 {[%emt 0:03:59]} Nc6 {[%emt 0:01:29]} 9. Qh4 {[%emt 0:06:08]} Be7 {[%emt 0:08:48]} 10. Bg5 {[%emt 0:06:16]} Ne5 {[%emt 0:09:09]} 11. Bb5+ {[%emt 0:04:43]} Bd7 {[%emt 0:00:13]} 12. Bxd7+ {[%emt 0:06:27]} Nxd7 {[%emt 0:00:44]} 13. O-O-O {[%emt 0:00:38]} Bxg5+ {[%emt 0:16:16]} 14. Nxg5 {[%emt 0:24:24]} Ngf6 {[%emt 0:01:33]} 15. Qb4 {[%emt 0:01:59]} h6 {[%emt 0:14:29]} 16. Nf3 {[%emt 0:02:03]} Rc8 {[%emt 0:04:23]} 17. c3 {[%emt 0:04:25]} Qb6 {[%emt 0:04:10]} 18. Qa4 {[%emt 0:06:40]} O-O {[%emt 0:07:18]} 19. Rxd7 {[%emt 0:03:32]} Nxd7 {[%emt 0:00:05]} 20. Qxd7 {[%emt 0:00:05]} Rfd8 {[%emt 0:00:29]} 21. Qa4 {[%emt 0:01:10]} Qxf2 {[%emt 0:00:14]} 22. Qe4 {[%emt 0:04:10]} Rd5 {[%emt 0:15:04]} 23. g4 {[%emt 0:08:49]} Rcd8 {[%emt 0:02:59]} 24. Re1 {[%emt 0:04:00]} R8d6 {[%emt 0:05:26]} 25. h4 {[%emt 0:03:50]} Ra6 {[%emt 0:00:52]} 26. a3 {[%emt 0:00:54]} Rb6 {[%emt 0:00:26]} 27. Nbd2 {[%emt 0:00:46]} a5 {[%emt 0:02:09]} 28. Re2 {[%emt 0:01:02]} Qg3 {[%emt 0:00:39]} 29. g5 {[%emt 0:00:23]} hxg5 {[%emt 0:00:20]} 30. hxg5 {[%emt 0:00:17]} Rbd6 {[%emt 0:00:40]} 31. a4 {[%emt 0:01:53]} Rc6 {[%emt 0:01:07]} 32. Kc2 {[%emt 0:01:18]} Rdc5 {[%emt 0:01:27]} 33. Rh2 {[%emt 0:00:51]} Rf5 {[%emt 0:00:49]} 34. Qh4 {[%emt 0:00:56]} Qxh4 {[%emt 0:00:15]} 35. Rxh4 {[%emt 0:00:03]} Rd6 {[%emt 0:00:50]} 36. Rc4 {[%emt 0:01:05]} Rd7 {[%emt 0:00:37]} 37. g6 {[%emt 0:01:28]} fxg6 {[%emt 0:00:16]} 38. Rc8+ {[%emt 0:00:33]} Rf8 {[%emt 0:01:34]} 39. Rc5 {[%emt 0:00:25]} Rf5 {[%emt 0:00:21]} 40. Rc8+ {[%emt 0:00:52]} Rf8 {[%emt 0:00:02]} 41. Rc4 {[%emt 0:08:25]} Rd5 {[%emt 0:07:38]} 42. Rg4 {[%emt 0:01:37]} Rf6 {[%emt 0:01:22]} 43. Ng5 {[%emt 0:01:13]} Rf2 {[%emt 0:01:35]} 44. Nge4 {[%emt 0:00:35]} Re2 {[%emt 0:00:51]} 45. Rxg6 {[%emt 0:01:19]} Kh7 {[%emt 0:01:56]} 46. Rg4 {[%emt 0:03:04]} Kh6 {[%emt 0:00:40]} 47. Rh4+ {[%emt 0:03:16]} Kg6 {[%emt 0:00:14]} 48. Rh8 {[%emt 0:00:31]} Rg2 {[%emt 0:01:46]} 49. c4 {[%emt 0:03:47]} Rd7 {[%emt 0:01:33]} 50. Kc3 {[%emt 0:00:21]} Kf5 {[%emt 0:00:44]} 51. Rf8+ {[%emt 0:01:17]} Ke5 {[%emt 0:05:37]} 52. Ng5 {[%emt 0:00:39]} Kd6 {[%emt 0:01:55]} 53. Nde4+ {[%emt 0:00:49]} Ke5 {[%emt 0:03:13]} 54. Nc5 {[%emt 0:02:07]} Rxg5 {[%emt 0:01:44]} 55. Nxd7+ {[%emt 0:00:06]} Kd6 {[%emt 0:00:07]} 56. Rf7 {[%emt 0:01:43]} Rg3+ {[%emt 0:00:40]} 57. Kc2 {[%emt 0:01:05]} Rg2+ {[%emt 0:00:11]} 58. Kb3 {[%emt 0:00:43]} Rg3+ {[%emt 0:00:20]} 59. Ka2 {[%emt 0:00:13]} g5 {[%emt 0:03:08]} 60. c5+ {[%emt 0:01:37]} Kd5 {[%emt 0:00:46]} 61. Nf6+ {[%emt 0:00:22]} Ke5 {[%emt 0:00:54]} 62. Ne8 {[%emt 0:00:35]} Rg4 {[%emt 0:01:00]} 63. Rxb7 {[%emt 0:00:50]} Rxa4+ {[%emt 0:00:42]} 64. Kb3 {[%emt 0:00:12]} Rd4 {[%emt 0:02:05]} 65. c6 {[%emt 0:00:22]} a4+ {[%emt 0:00:17]} 66. Kc3 {[%emt 0:01:21]} Rd1 {[%emt 0:01:49]} 67. c7 {[%emt 0:01:06]} g4 {[%emt 0:00:09]} 68. Kc2 {[%emt 0:01:11]} g3 {[%emt 0:00:46]} 69. c8=Q {[%emt 0:00:10]} 1-0

[Event "Denmark Team Championship 2022"]
[Site "Denmark"]
[Date "2022.10.29"]
[Round "1.3"]
[White "Aagaard, Jacob"]
[Black "Sloth, Jorn"]
[Result "0-1"]
[ECO "B00"]
[WhiteElo "2455"]
[BlackElo "2296"]
[Annotator "ChessBase"]
[PlyCount "80"]
[EventDate "2022.10.29"]
[EventType "team-tourn"]
[EventCountry "DEN"]
[SourceTitle "playchess.com"]
[Source "ChessBase"]
[SourceQuality "1"]
[TimeControl "40/5400+30:1800+30"]

1. e4 {[%emt 0:00:03]} Nc6 {[%emt 0:01:14]} 2. d4 {[%emt 0:00:28]} d5 {[%emt 0:00:21]} 3. e5 {[%emt 0:00:22]} Bf5 {[%emt 0:01:58]} 4. c3 {[%emt 0:04:17]} Qd7 {[%emt 0:03:13]} 5. Nd2 {[%emt 0:00:56]} f6 {[%emt 0:08:21]} 6. f4 {[%emt 0:00:30]} Nh6 {[%emt 0:06:33]} 7. Be2 {[%emt 0:06:58]} e6 {[%emt 0:03:54]} 8. g4 {[%emt 0:06:57]} Bg6 {[%emt 0:03:51]} 9. h4 {[%emt 0:00:40]} fxe5 {[%emt 0:05:43]} 10. fxe5 {[%emt 0:00:28]} Be7 {[%emt 0:02:07]} 11. h5 {[%emt 0:00:34]} Be4 {[%emt 0:04:14]} 12. Nxe4 {[%emt 0:06:24]} dxe4 {[%emt 0:00:09]} 13. Be3 {[%emt 0:01:14]} Nf7 {[%emt 0:09:38]} 14. Qc2 {[%emt 0:09:08]} Qd5 {[%emt 0:08:26]} 15. Nh3 {[%emt 0:08:08]} Bh4+ {[%emt 0:12:58]} 16. Kf1 {[%emt 0:03:47]} O-O {[%emt 0:04:13]} 17. Nf4 {[%emt 0:10:34]} Nfxe5 {[%emt 0:07:35]} 18. Rxh4 {[%emt 0:05:03]} g5 {[%emt 0:04:30]} 19. hxg6 {[%emt 0:12:29]} Nxg6 {[%emt 0:00:12]} 20. Kg1 {[%emt 0:10:39]} Nxf4 {[%emt 0:02:26]} 21. Bf3 {[%emt 0:00:49]} Nh3+ {[%emt 0:04:03]} 22. Rxh3 {[%emt 0:02:04]} Rxf3 {[%emt 0:00:05]} 23. Rxf3 {[%emt 0:02:38]} exf3 {[%emt 0:00:02]} 24. Kf2 {[%emt 0:01:22]} Rf8 {[%emt 0:00:47]} 25. Rh1 {[%emt 0:00:43]} Rf7 {[%emt 0:00:20]} 26. a3 {[%emt 0:03:12]} e5 {[%emt 0:02:02]} 27. c4 {[%emt 0:01:16]} Nxd4 {[%emt 0:01:55]} 28. Qd3 {[%emt 0:01:29]} Qe6 {[%emt 0:01:18]} 29. Qe4 {[%emt 0:01:04]} Qg6 {[%emt 0:00:19]} 30. Qxg6+ {[%emt 0:00:38]} hxg6 {[%emt 0:00:02]} 31. Bg5 {[%emt 0:00:35]} e4 {[%emt 0:02:06]} 32. Ke3 {[%emt 0:00:06]} Ne6 {[%emt 0:00:43]} 33. Bh6 {[%emt 0:00:18]} Rh7 {[%emt 0:01:00]} 34. Kxe4 {[%emt 0:00:13]} f2 {[%emt 0:00:09]} 35. Ke5 {[%emt 0:00:42]} Rxh6 {[%emt 0:00:15]} 36. Rf1 {[%emt 0:00:03]} g5 {[%emt 0:00:37]} 37. Rxf2 {[%emt 0:00:04]} Kg7 {[%emt 0:00:44]} 38. Rd2 {[%emt 0:00:09]} Kf8 {[%emt 0:00:34]} 39. b4 {[%emt 0:00:12]} Ke7 {[%emt 0:00:16]} 40. c5 {[%emt 0:00:08]} Rh3 {[%emt 0:00:26]} 0-1

[Event "Denmark Team Championship 2022"]
[Site "Denmark"]
[Date "2022.10.29"]
[Round "1.3"]
[White "Skytte, Rasmus"]
[Black "Liu, Casper"]
[Result "1-0"]
[ECO "B50"]
[WhiteElo "2354"]
[BlackElo "2317"]
[Annotator "ChessBase"]
[PlyCount "57"]
[EventDate "2022.10.29"]
[EventType "team-tourn"]
[EventCountry "DEN"]
[SourceTitle "playchess.com"]
[Source "ChessBase"]
[SourceQuality "1"]
[TimeControl "40/5400+30:1800+30"]

1. e4 {[%emt 0:00:07]} c5 {[%emt 0:01:04]} 2. Nf3 {[%emt 0:03:01]} d6 {[%emt 0:00:28]} 3. c3 {[%emt 0:00:57]} Nf6 {[%emt 0:01:58]} 4. Be2 {[%emt 0:04:13]} g6 {[%emt 0:00:49]} 5. O-O {[%emt 0:01:36]} Bg7 {[%emt 0:00:10]} 6. d3 {[%emt 0:05:15]} O-O {[%emt 0:00:34]} 7. Nbd2 {[%emt 0:02:21]} Nc6 {[%emt 0:06:54]} 8. Re1 {[%emt 0:01:19]} b5 {[%emt 0:06:55]} 9. d4 {[%emt 0:01:44]} Rb8 {[%emt 0:09:54]} 10. a4 {[%emt 0:07:01]} b4 {[%emt 0:03:12]} 11. Bb5 {[%emt 0:03:44]} bxc3 {[%emt 0:04:37]} 12. bxc3 {[%emt 0:01:04]} Na5 {[%emt 0:01:28]} 13. Ba3 {[%emt 0:07:08]} Bd7 {[%emt 0:04:28]} 14. dxc5 {[%emt 0:03:29]} dxc5 {[%emt 0:04:18]} 15. Bxc5 {[%emt 0:02:22]} Bxb5 {[%emt 0:00:10]} 16. axb5 {[%emt 0:00:34]} Rxb5 {[%emt 0:00:05]} 17. Bxa7 {[%emt 0:02:45]} Nc6 {[%emt 0:08:46]} 18. Bd4 {[%emt 0:03:29]} e5 {[%emt 0:03:56]} 19. Be3 {[%emt 0:04:05]} Qc7 {[%emt 0:09:26]} 20. h3 {[%emt 0:04:44]} Rfb8 {[%emt 0:00:55]} 21. Qa4 {[%emt 0:01:19]} Ne8 {[%emt 0:04:28]} 22. Nc4 {[%emt 0:09:59]} Nb4 {[%emt 0:02:24]} 23. Nfxe5 {[%emt 0:10:37]} Bxe5 {[%emt 0:01:13]} 24. Nxe5 {[%emt 0:00:23]} Qxe5 {[%emt 0:01:34]} 25. cxb4 {[%emt 0:01:20]} Rxb4 {[%emt 0:00:12]} 26. Qa3 {[%emt 0:08:39]} Rxe4 {[%emt 0:03:14]} 27. f3 {[%emt 0:01:54]} Reb4 {[%emt 0:04:52]} 28. Ba7 {[%emt 0:00:52]} Qg3 {[%emt 0:00:21]} 29. Rxe8+ 1-0

[Event "Denmark Team Championship 2022"]
[Site "Denmark"]
[Date "2022.10.29"]
[Round "1.3"]
[White "Matthiesen, Arne"]
[Black "Percivaldi, Martin"]
[Result "0-1"]
[ECO "A13"]
[WhiteElo "2314"]
[BlackElo "2400"]
[Annotator "ChessBase"]
[PlyCount "84"]
[EventDate "2022.10.29"]
[EventType "team-tourn"]
[EventCountry "DEN"]
[SourceTitle "playchess.com"]
[Source "ChessBase"]
[SourceQuality "1"]
[TimeControl "40/5400+30:1800+30"]

1. c4 {[%emt 0:00:14]} e6 {[%emt 0:00:26]} 2. Nf3 {[%emt 0:00:29]} d5 {[%emt 0:00:13]} 3. g3 {[%emt 0:00:26]} dxc4 {[%emt 0:00:26]} 4. Qa4+ {[%emt 0:00:59]} Bd7 {[%emt 0:03:16]} 5. Qxc4 {[%emt 0:00:06]} c5 {[%emt 0:00:22]} 6. Bg2 {[%emt 0:00:53]} Bc6 {[%emt 0:01:24]} 7. O-O {[%emt 0:01:17]} Nf6 {[%emt 0:02:38]} 8. b3 {[%emt 0:06:05]} Be7 {[%emt 0:02:53]} 9. Bb2 {[%emt 0:00:38]} O-O {[%emt 0:01:00]} 10. d3 {[%emt 0:04:14]} Nbd7 {[%emt 0:05:54]} 11. Nbd2 {[%emt 0:00:07]} b5 {[%emt 0:03:03]} 12. Qc2 {[%emt 0:00:07]} Rc8 {[%emt 0:00:09]} 13. e4 {[%emt 0:02:45]} Qb6 {[%emt 0:08:22]} 14. a4 {[%emt 0:03:24]} a6 {[%emt 0:01:03]} 15. Bc3 {[%emt 0:02:08]} Qb8 {[%emt 0:06:25]} 16. Rfe1 {[%emt 0:06:40]} Rfd8 {[%emt 0:02:49]} 17. Qb1 {[%emt 0:03:10]} Ng4 {[%emt 0:11:53]} 18. axb5 {[%emt 0:08:26]} axb5 {[%emt 0:00:20]} 19. h3 {[%emt 0:19:22]} Nge5 {[%emt 0:09:02]} 20. Re3 {[%emt 0:11:58]} Bf6 {[%emt 0:03:32]} 21. d4 {[%emt 0:02:34]} Nxf3+ {[%emt 0:05:25]} 22. Nxf3 {[%emt 0:00:06]} Bb7 {[%emt 0:05:38]} 23. b4 {[%emt 0:04:42]} cxd4 {[%emt 0:05:37]} 24. Bxd4 {[%emt 0:01:56]} Rc4 {[%emt 0:02:01]} 25. Qb2 {[%emt 0:06:39]} Rxd4 {[%emt 0:02:40]} 26. Nxd4 {[%emt 0:00:45]} Ne5 {[%emt 0:00:21]} 27. Qe2 {[%emt 0:04:28]} Rxd4 {[%emt 0:02:20]} 28. Qxb5 {[%emt 0:01:04]} Rd8 {[%emt 0:02:40]} 29. Rc1 {[%emt 0:02:33]} g5 {[%emt 0:09:11]} 30. Rc5 {[%emt 0:03:22]} h6 {[%emt 0:01:20]} 31. Bf1 {[%emt 0:02:47]} Nd7 {[%emt 0:01:16]} 32. Rc1 {[%emt 0:00:39]} Bd4 {[%emt 0:00:20]} 33. Re2 {[%emt 0:00:54]} Qxg3+ {[%emt 0:00:50]} 34. Bg2 {[%emt 0:00:11]} Qb8 {[%emt 0:01:02]} 35. h4 {[%emt 0:01:02]} e5 {[%emt 0:00:35]} 36. Bh3 {[%emt 0:00:12]} Nf6 {[%emt 0:00:36]} 37. hxg5 {[%emt 0:00:03]} hxg5 {[%emt 0:00:04]} 38. Bf5 {[%emt 0:00:08]} Nh5 {[%emt 0:00:41]} 39. Kh2 {[%emt 0:00:21]} Nf4 {[%emt 0:00:41]} 40. Rg1 {[%emt 0:00:23]} Qd6 {[%emt 0:00:28]} 41. Ra2 {[%emt 0:32:03]} Qh6+ {[%emt 0:30:45]} 42. Kg3 {[%emt 0:00:08]} Bxe4 {[%emt 0:00:50]} 0-1

[Event "Denmark Team Championship 2022"]
[Site "Denmark"]
[Date "2022.10.29"]
[Round "1.4"]
[White "Borge, Nikolaj"]
[Black "Hansen, Lars Bo"]
[Result "1-0"]
[ECO "C02"]
[WhiteElo "2388"]
[BlackElo "2560"]
[Annotator "ChessBase"]
[PlyCount "69"]
[EventDate "2022.10.29"]
[EventType "team-tourn"]
[EventCountry "DEN"]
[SourceTitle "playchess.com"]
[Source "ChessBase"]
[SourceQuality "1"]
[TimeControl "40/5400+30:1800+30"]

1. e4 {[%emt 0:00:03]} e6 {[%emt 0:00:25]} 2. d4 {[%emt 0:00:05]} d5 {[%emt 0:00:06]} 3. e5 {[%emt 0:00:04]} c5 {[%emt 0:00:13]} 4. c3 {[%emt 0:00:04]} Qb6 {[%emt 0:00:16]} 5. Nf3 {[%emt 0:00:14]} Nc6 {[%emt 0:00:08]} 6. Bd3 {[%emt 0:00:26]} cxd4 {[%emt 0:00:19]} 7. O-O {[%emt 0:00:22]} Bd7 {[%emt 0:00:14]} 8. Re1 {[%emt 0:00:45]} Nge7 {[%emt 0:00:34]} 9. h4 {[%emt 0:00:16]} Rc8 {[%emt 0:01:29]} 10. a3 {[%emt 0:08:45]} a6 {[%emt 0:08:42]} 11. h5 {[%emt 0:12:01]} h6 {[%emt 0:03:53]} 12. b4 {[%emt 0:06:58]} dxc3 {[%emt 0:07:31]} 13. Nxc3 {[%emt 0:01:01]} Nxb4 {[%emt 0:16:39]} 14. Na4 {[%emt 0:02:24]} Bxa4 {[%emt 0:04:40]} 15. Qxa4+ {[%emt 0:00:07]} Nbc6 {[%emt 0:00:23]} 16. Be3 {[%emt 0:07:06]} Qc7 {[%emt 0:05:45]} 17. Rab1 {[%emt 0:03:45]} Qd7 {[%emt 0:05:39]} 18. Bc2 {[%emt 0:02:17]} Nf5 {[%emt 0:20:43]} 19. Bb6 {[%emt 0:03:32]} Be7 {[%emt 0:07:31]} 20. Qb3 {[%emt 0:12:32]} Bd8 {[%emt 0:10:43]} 21. Bxf5 {[%emt 0:22:57]} exf5 {[%emt 0:00:37]} 22. Bc5 {[%emt 0:05:35]} Be7 {[%emt 0:02:06]} 23. Bxe7 {[%emt 0:02:05]} Qxe7 {[%emt 0:00:19]} 24. Qxb7 {[%emt 0:03:09]} Qxb7 {[%emt 0:00:19]} 25. Rxb7 {[%emt 0:00:04]} O-O {[%emt 0:00:15]} 26. Rb6 {[%emt 0:00:43]} a5 {[%emt 0:01:38]} 27. Ra6 {[%emt 0:02:31]} Rfd8 {[%emt 0:01:53]} 28. Nh4 {[%emt 0:01:25]} Nd4 {[%emt 0:00:50]} 29. Rxa5 {[%emt 0:01:31]} Ra8 {[%emt 0:00:27]} 30. Rxa8 {[%emt 0:00:12]} Rxa8 {[%emt 0:00:03]} 31. Rd1 {[%emt 0:00:33]} Ra4 {[%emt 0:00:28]} 32. g3 {[%emt 0:01:05]} Kf8 {[%emt 0:00:18]} 33. Kg2 {[%emt 0:00:03]} Ke7 {[%emt 0:00:26]} 34. Rxd4 {[%emt 0:00:06]} Rxa3 {[%emt 0:00:25]} 35. Rxd5 {[%emt 0:00:28]} 1-0